[Event "Early-Titled-Tuesday-Blitz-October-10-2023"]
[Site "Chess.com"]
[Date "2023.10.10"]
[Round "7"]
[White "Ariadna_Atreides"]
[Black "Zeck_CH"]
[Result "0-1"]
[WhiteElo "2193"]
[BlackElo "2477"]
[TimeControl "180+1"]
[EndTime "9:15:58 PDT"]
[Termination "Zeck_CH won on time"]

1. d4 {[%clk 0:03:00.9]} 1... c5 {[%clk 0:02:52.7]} 2. e3 {[%clk 0:03:00.4]}
2... g6 {[%clk 0:02:51.5]} 3. Nf3 {[%clk 0:03:00.3]} 3... Bg7 {[%clk 0:02:51.8]}
4. Nbd2 {[%clk 0:02:59.3]} 4... b6 {[%clk 0:02:51.8]} 5. b3 {[%clk 0:02:56.9]}
5... cxd4 {[%clk 0:02:49.9]} 6. exd4 {[%clk 0:02:56.3]} 6... Bb7 {[%clk
0:02:50.1]} 7. Bb2 {[%clk 0:02:55.7]} 7... d6 {[%clk 0:02:50.6]} 8. c4 {[%clk
0:02:54.2]} 8... Nd7 {[%clk 0:02:51.1]} 9. Rb1 {[%clk 0:02:46.7]} 9... e6 {[%clk
0:02:49.3]} 10. Be2 {[%clk 0:02:34.5]} 10... Ne7 {[%clk 0:02:49.2]} 11. O-O
{[%clk 0:02:34.2]} 11... O-O {[%clk 0:02:49.3]} 12. Re1 {[%clk 0:02:24.2]} 12...
a5 {[%clk 0:02:48.3]} 13. h4 {[%clk 0:02:21]} 13... h6 {[%clk 0:02:47.3]} 14. h5
{[%clk 0:02:19.6]} 14... g5 {[%clk 0:02:47.4]} 15. Bd3 {[%clk 0:02:17.3]} 15...
Re8 {[%clk 0:02:43.2]} 16. Ne4 {[%clk 0:02:11.9]} 16... Nf8 {[%clk 0:02:42.5]}
17. Qd2 {[%clk 0:01:45.1]} 17... f5 {[%clk 0:02:41.3]} 18. Ng3 {[%clk
0:01:30.3]} 18... a4 {[%clk 0:02:33.3]} 19. d5 {[%clk 0:01:28.6]} 19... g4
{[%clk 0:02:21.4]} 20. Bxg7 {[%clk 0:01:23.3]} 20... Kxg7 {[%clk 0:02:19.5]} 21.
Nh4 {[%clk 0:01:14.3]} 21... axb3 {[%clk 0:02:18.9]} 22. dxe6 {[%clk 0:01:10.1]}
22... bxa2 {[%clk 0:02:10.4]} 23. Ngxf5+ {[%clk 0:01:06.7]} 23... Nxf5 {[%clk
0:02:05.1]} 24. Nxf5+ {[%clk 0:01:06.3]} 24... Kg8 {[%clk 0:02:03.1]} 25. Nxh6+
{[%clk 0:00:56.8]} 25... Kg7 {[%clk 0:01:56.9]} 26. Nf5+ {[%clk 0:00:52.8]}
26... Kg8 {[%clk 0:01:56.9]} 27. Qh6 {[%clk 0:00:34.3]} 27... Re7 {[%clk
0:01:54.2]} 28. Nxe7+ {[%clk 0:00:27.5]} 28... Qxe7 {[%clk 0:01:55.1]} 29. Ra1
{[%clk 0:00:26]} 29... Ra5 {[%clk 0:01:48]} 30. Qe3 {[%clk 0:00:22.3]} 30... Nh7
{[%clk 0:01:38.8]} 31. Bxh7+ {[%clk 0:00:19.1]} 31... Kxh7 {[%clk 0:01:37.8]}
32. Qd3+ {[%clk 0:00:19.5]} 32... Kg8 {[%clk 0:01:37]} 33. Qg6+ {[%clk
0:00:19.2]} 33... Kh8 {[%clk 0:01:34.8]} 34. Qxg4 {[%clk 0:00:17]} 34... Rg5
{[%clk 0:01:34.5]} 35. Qd4+ {[%clk 0:00:16.6]} 35... Kh7 {[%clk 0:01:35.1]} 36.
g3 {[%clk 0:00:15.3]} 36... Rxh5 {[%clk 0:01:31.2]} 37. Qd3+ {[%clk 0:00:14.1]}
37... Kh8 {[%clk 0:01:29.2]} 38. f3 {[%clk 0:00:13.8]} 38... Qg5 {[%clk
0:01:24.8]} 39. Kg2 {[%clk 0:00:12.8]} 39... Qh6 {[%clk 0:01:22.7]} 40. Rh1
{[%clk 0:00:11]} 40... Rxh1 {[%clk 0:01:21.5]} 41. Rxh1 {[%clk 0:00:10.4]} 41...
Qxh1+ {[%clk 0:01:22.1]} 42. Kxh1 {[%clk 0:00:10.6]} 42... a1=Q+ {[%clk
0:01:23]} 43. Kg2 {[%clk 0:00:09.1]} 43... Qb2+ {[%clk 0:01:23.5]} 44. Kh3
{[%clk 0:00:08.2]} 44... Qf6 {[%clk 0:01:22.6]} 45. Qe3 {[%clk 0:00:07.1]} 45...
Bc8 {[%clk 0:01:20.6]} 46. g4 {[%clk 0:00:05.1]} 46... Bxe6 {[%clk 0:01:19.2]}
47. Kg3 {[%clk 0:00:05.2]} 47... Bxc4 {[%clk 0:01:17.1]} 48. Qxb6 {[%clk
0:00:04.5]} 48... Qe5+ {[%clk 0:01:17.5]} 49. Kf2 {[%clk 0:00:04.1]} 49... d5
{[%clk 0:01:17.1]} 50. Qd8+ {[%clk 0:00:03.1]} 50... Kg7 {[%clk 0:01:17.7]} 51.
Qd7+ {[%clk 0:00:03.2]} 51... Kf8 {[%clk 0:01:16.6]} 52. Qd8+ {[%clk 0:00:03.2]}
52... Kf7 {[%clk 0:01:14.2]} 53. Qd7+ {[%clk 0:00:03.4]} 53... Qe7 {[%clk
0:01:14.9]} 54. Qf5+ {[%clk 0:00:03.2]} 54... Kg7 {[%clk 0:01:09.4]} 55. g5
{[%clk 0:00:02.9]} 55... Qa7+ {[%clk 0:01:07.1]} 56. Kg3 {[%clk 0:00:02.4]}
56... Qc7+ {[%clk 0:01:07]} 57. f4 {[%clk 0:00:03.3]} 57... Qe7 {[%clk
0:01:07.1]} 58. Qg4 {[%clk 0:00:03.3]} 58... Qe1+ {[%clk 0:01:06.9]} 59. Kh3
{[%clk 0:00:03.2]} 59... Bf1+ {[%clk 0:01:06.5]} 60. Kh2 {[%clk 0:00:02.6]}
60... Qf2+ {[%clk 0:01:05.9]} 61. Kh1 {[%clk 0:00:02.1]} 61... Bb5 {[%clk
0:00:53.9]} 62. f5 {[%clk 0:00:01.2]} 62... Qe1+ {[%clk 0:00:52.4]} 63. Kh2
{[%clk 0:00:01.2]} 63... Qd2+ {[%clk 0:00:51.9]} 64. Kh3 {[%clk 0:00:01.2]}
64... Be2 {[%clk 0:00:51.6]} 0-1

[Event "Early-Titled-Tuesday-Blitz-October-10-2023"]
[Site "Chess.com"]
[Date "2023.10.10"]
[Round "7"]
[White "Alina_Gumerovna"]
[Black "zverr1"]
[Result "1/2-1/2"]
[WhiteElo "2129"]
[BlackElo "2496"]
[TimeControl "180+1"]
[EndTime "9:16:02 PDT"]
[Termination "Game drawn by repetition"]

1. e4 {[%clk 0:02:59.5]} 1... c5 {[%clk 0:02:59.6]} 2. Nf3 {[%clk 0:02:59.2]}
2... d6 {[%clk 0:03:00]} 3. d4 {[%clk 0:02:59.6]} 3... cxd4 {[%clk 0:03:00.9]}
4. Nxd4 {[%clk 0:03:00.4]} 4... Nf6 {[%clk 0:03:01.1]} 5. f3 {[%clk 0:03:00.8]}
5... e5 {[%clk 0:03:00.4]} 6. Nb3 {[%clk 0:03:01.1]} 6... d5 {[%clk 0:02:57.9]}
7. exd5 {[%clk 0:03:00.6]} 7... Qxd5 {[%clk 0:02:56.6]} 8. Qxd5 {[%clk 0:02:58]}
8... Nxd5 {[%clk 0:02:57.5]} 9. Bd2 {[%clk 0:02:47.4]} 9... Be6 {[%clk
0:02:54.9]} 10. Nc3 {[%clk 0:02:47.6]} 10... Nc6 {[%clk 0:02:54]} 11. O-O-O
{[%clk 0:02:45.6]} 11... O-O-O {[%clk 0:02:52.2]} 12. Nxd5 {[%clk 0:02:43.8]}
12... Bxd5 {[%clk 0:02:49.7]} 13. c3 {[%clk 0:02:42.2]} 13... f6 {[%clk
0:02:44.1]} 14. Kc2 {[%clk 0:02:33.8]} 14... e4 {[%clk 0:02:40.2]} 15. f4 {[%clk
0:02:28.1]} 15... f5 {[%clk 0:02:25.7]} 16. Be3 {[%clk 0:02:27.4]} 16... Be7
{[%clk 0:02:22.2]} 17. Be2 {[%clk 0:02:23.3]} 17... Bf6 {[%clk 0:02:22]} 18. g3
{[%clk 0:02:20.3]} 18... b6 {[%clk 0:02:21.3]} 19. Nd4 {[%clk 0:02:12.2]} 19...
Bxd4 {[%clk 0:02:16.9]} 20. Bxd4 {[%clk 0:02:13.1]} 20... Rd7 {[%clk 0:02:13.8]}
21. Be3 {[%clk 0:02:10.6]} 21... Rhd8 {[%clk 0:02:05.4]} 22. b3 {[%clk
0:02:09.1]} 22... Kc7 {[%clk 0:01:59]} 23. Rd2 {[%clk 0:02:05.2]} 23... Be6
{[%clk 0:01:57.1]} 24. Rhd1 {[%clk 0:02:05.3]} 24... Rxd2+ {[%clk 0:01:57.2]}
25. Rxd2 {[%clk 0:02:06.2]} 25... Rxd2+ {[%clk 0:01:48.5]} 26. Kxd2 {[%clk
0:02:07.1]} 26... Ne7 {[%clk 0:01:43.4]} 27. c4 {[%clk 0:02:03.6]} 27... Nc6
{[%clk 0:01:39.3]} 28. Kc3 {[%clk 0:02:02]} 28... h6 {[%clk 0:01:32.1]} 29. h4
{[%clk 0:01:56.7]} 29... Bf7 {[%clk 0:01:24]} 30. b4 {[%clk 0:01:53]} 30... a5
{[%clk 0:01:19]} 31. a3 {[%clk 0:01:52.3]} 31... axb4+ {[%clk 0:01:18.1]} 32.
axb4 {[%clk 0:01:53.2]} 32... Kb7 {[%clk 0:01:08.2]} 33. Bd4 {[%clk 0:01:47.5]}
33... g6 {[%clk 0:00:58.9]} 34. Bg7 {[%clk 0:01:40.1]} 34... h5 {[%clk
0:00:58.3]} 35. Bf6 {[%clk 0:01:39]} 35... Kc7 {[%clk 0:00:55.3]} 36. b5 {[%clk
0:01:30.3]} 36... Na5 {[%clk 0:00:51.6]} 37. Be5+ {[%clk 0:01:23.1]} 37... Kd7
{[%clk 0:00:46.5]} 38. Bd4 {[%clk 0:01:22.7]} 38... Kc7 {[%clk 0:00:46.4]} 39.
Kb4 {[%clk 0:01:22.8]} 39... Nb7 {[%clk 0:00:45.7]} 40. c5 {[%clk 0:00:34.7]}
40... bxc5+ {[%clk 0:00:41.7]} 41. Bxc5 {[%clk 0:00:35.6]} 41... Bd5 {[%clk
0:00:35.7]} 42. Bd4 {[%clk 0:00:27.3]} 42... Kd6 {[%clk 0:00:33.2]} 43. Be5+
{[%clk 0:00:26.3]} 43... Ke6 {[%clk 0:00:31.1]} 44. b6 {[%clk 0:00:26]} 44...
Kd7 {[%clk 0:00:29.3]} 45. Bb5+ {[%clk 0:00:18.2]} 45... Bc6 {[%clk 0:00:29.4]}
46. Be2 {[%clk 0:00:18.2]} 46... Bd5 {[%clk 0:00:23]} 47. Bb5+ {[%clk
0:00:15.1]} 47... Bc6 {[%clk 0:00:21.5]} 48. Be2 {[%clk 0:00:15.1]} 48... Nd8
{[%clk 0:00:21.5]} 49. Bf6 {[%clk 0:00:08.3]} 49... Nb7 {[%clk 0:00:13.8]} 50.
Be5 {[%clk 0:00:07.6]} 1/2-1/2

[Event "Early-Titled-Tuesday-Blitz-October-10-2023"]
[Site "Chess.com"]
[Date "2023.10.10"]
[Round "7"]
[White "Alphafischer2019"]
[Black "Vision_64"]
[Result "1-0"]
[WhiteElo "2573"]
[BlackElo "2336"]
[TimeControl "180+1"]
[EndTime "9:16:02 PDT"]
[Termination "Alphafischer2019 won on time"]

1. e4 {[%clk 0:03:00.9]} 1... e6 {[%clk 0:02:56.3]} 2. d4 {[%clk 0:02:59.2]}
2... d5 {[%clk 0:02:53.7]} 3. Nd2 {[%clk 0:02:59.2]} 3... Nc6 {[%clk 0:02:47.3]}
4. Ngf3 {[%clk 0:02:58.3]} 4... Nf6 {[%clk 0:02:45.2]} 5. e5 {[%clk 0:02:57.5]}
5... Nd7 {[%clk 0:02:45]} 6. Bd3 {[%clk 0:02:57.8]} 6... Nb4 {[%clk 0:02:43.8]}
7. Be2 {[%clk 0:02:58.1]} 7... c5 {[%clk 0:02:43.6]} 8. c3 {[%clk 0:02:58.6]}
8... Nc6 {[%clk 0:02:43.6]} 9. Bd3 {[%clk 0:02:59.3]} 9... cxd4 {[%clk
0:02:39.3]} 10. cxd4 {[%clk 0:03:00.2]} 10... Nb4 {[%clk 0:02:37.3]} 11. Bb1
{[%clk 0:02:45.6]} 11... b6 {[%clk 0:02:36.6]} 12. a3 {[%clk 0:02:40.8]} 12...
Nc6 {[%clk 0:02:29.3]} 13. Bd3 {[%clk 0:02:37]} 13... f6 {[%clk 0:02:22.1]} 14.
exf6 {[%clk 0:02:35.6]} 14... Nxf6 {[%clk 0:02:22.5]} 15. O-O {[%clk 0:02:33.9]}
15... Bd6 {[%clk 0:02:22.7]} 16. Re1 {[%clk 0:02:31.4]} 16... O-O {[%clk
0:02:22.9]} 17. b4 {[%clk 0:02:24.2]} 17... Ng4 {[%clk 0:01:56.9]} 18. Bb2
{[%clk 0:01:45.6]} 18... Qf6 {[%clk 0:01:49.5]} 19. Qe2 {[%clk 0:01:33.1]} 19...
Qh6 {[%clk 0:01:18.5]} 20. h3 {[%clk 0:01:30]} 20... Nf6 {[%clk 0:01:15.3]} 21.
Rac1 {[%clk 0:01:26.6]} 21... Bd7 {[%clk 0:01:07.6]} 22. Rxc6 {[%clk 0:01:21.7]}
22... Bxc6 {[%clk 0:01:04.9]} 23. Qxe6+ {[%clk 0:01:22.3]} 23... Kh8 {[%clk
0:01:01]} 24. Qxd6 {[%clk 0:01:22.5]} 24... Rac8 {[%clk 0:00:56.8]} 25. Bc1
{[%clk 0:01:08.4]} 25... Qh5 {[%clk 0:00:45.8]} 26. Ne5 {[%clk 0:00:45.3]} 26...
Ba8 {[%clk 0:00:43.6]} 27. Nf1 {[%clk 0:00:39.9]} 27... Ne4 {[%clk 0:00:35.6]}
28. Bxe4 {[%clk 0:00:27.1]} 28... dxe4 {[%clk 0:00:36.5]} 29. Be3 {[%clk
0:00:22]} 29... Rfd8 {[%clk 0:00:21.6]} 30. Qe7 {[%clk 0:00:20.7]} 30... Re8
{[%clk 0:00:16.9]} 31. Qxa7 {[%clk 0:00:19.9]} 31... Rc2 {[%clk 0:00:15.4]} 32.
Ng3 {[%clk 0:00:19.6]} 32... Qh4 {[%clk 0:00:14.8]} 33. Nf7+ {[%clk 0:00:19.2]}
33... Kg8 {[%clk 0:00:14.5]} 34. Ng5 {[%clk 0:00:19.2]} 34... Rf8 {[%clk
0:00:12.8]} 35. Qd7 {[%clk 0:00:18.4]} 35... Qh6 {[%clk 0:00:08.3]} 36. Ne6
{[%clk 0:00:15.8]} 36... Qf6 {[%clk 0:00:05]} 37. Nxf8 {[%clk 0:00:15.2]} 37...
Qxf8 {[%clk 0:00:05.9]} 38. Qe6+ {[%clk 0:00:15.3]} 38... Kh8 {[%clk 0:00:06]}
39. Nf5 {[%clk 0:00:15.6]} 39... Bb7 {[%clk 0:00:05.5]} 40. Nd6 {[%clk 0:00:16]}
40... Rc6 {[%clk 0:00:04.7]} 41. Nf7+ {[%clk 0:00:15.3]} 41... Kg8 {[%clk
0:00:05.1]} 42. Nh6+ {[%clk 0:00:10.3]} 42... Kh8 {[%clk 0:00:06]} 43. Qf5
{[%clk 0:00:10.3]} 43... Qd8 {[%clk 0:00:02.1]} 44. Nf7+ {[%clk 0:00:10.2]}
44... Kg8 {[%clk 0:00:02.2]} 45. Nxd8 {[%clk 0:00:11.1]} 1-0

[Event "Early-Titled-Tuesday-Blitz-October-10-2023"]
[Site "Chess.com"]
[Date "2023.10.10"]
[Round "7"]
[White "vedantgoswami"]
[Black "mary-sanna"]
[Result "1-0"]
[WhiteElo "2388"]
[BlackElo "2161"]
[TimeControl "180+1"]
[EndTime "9:16:06 PDT"]
[Termination "vedantgoswami won by resignation"]

1. c3 {[%clk 0:03:00.9]} 1... d5 {[%clk 0:02:58.6]} 2. d4 {[%clk 0:03:01.8]}
2... Nf6 {[%clk 0:02:58.1]} 3. Bf4 {[%clk 0:03:01.8]} 3... c5 {[%clk 0:02:57]}
4. e3 {[%clk 0:03:01.4]} 4... Nc6 {[%clk 0:02:56.9]} 5. Nd2 {[%clk 0:02:59.3]}
5... e6 {[%clk 0:02:48]} 6. Ngf3 {[%clk 0:02:57.9]} 6... Nh5 {[%clk 0:02:43.4]}
7. Be5 {[%clk 0:02:55.9]} 7... f6 {[%clk 0:02:32.1]} 8. Bg3 {[%clk 0:02:48.5]}
8... Nxg3 {[%clk 0:02:30.9]} 9. hxg3 {[%clk 0:02:49]} 9... Qb6 {[%clk
0:02:31.1]} 10. Qb3 {[%clk 0:02:41.5]} 10... c4 {[%clk 0:02:26.6]} 11. Qc2
{[%clk 0:02:36.9]} 11... g6 {[%clk 0:02:13]} 12. g4 {[%clk 0:02:27.7]} 12... Bg7
{[%clk 0:02:04.5]} 13. Be2 {[%clk 0:02:22.7]} 13... Bd7 {[%clk 0:02:01.8]} 14.
b3 {[%clk 0:02:13.8]} 14... cxb3 {[%clk 0:01:57.8]} 15. axb3 {[%clk 0:02:09.9]}
15... a6 {[%clk 0:01:53.8]} 16. b4 {[%clk 0:02:08.9]} 16... Rc8 {[%clk
0:01:51.5]} 17. Qb2 {[%clk 0:02:04.6]} 17... O-O {[%clk 0:01:36.3]} 18. Nb3
{[%clk 0:02:04]} 18... e5 {[%clk 0:01:16.3]} 19. g5 {[%clk 0:01:42.7]} 19...
exd4 {[%clk 0:01:09.9]} 20. exd4 {[%clk 0:01:36]} 20... f5 {[%clk 0:01:04]} 21.
Nc5 {[%clk 0:01:35.1]} 21... Qc7 {[%clk 0:00:59.9]} 22. Qa2 {[%clk 0:01:26.7]}
22... Ne7 {[%clk 0:00:53]} 23. O-O {[%clk 0:01:24.1]} 23... Bb5 {[%clk
0:00:47.2]} 24. Bxb5 {[%clk 0:01:21.8]} 24... axb5 {[%clk 0:00:47.3]} 25. Ne6
{[%clk 0:01:20.2]} 25... Qxc3 {[%clk 0:00:45.6]} 26. Nxf8 {[%clk 0:01:19]} 26...
Rxf8 {[%clk 0:00:43]} 27. Rfe1 {[%clk 0:01:18.5]} 27... Qxb4 {[%clk 0:00:38]}
28. Rab1 {[%clk 0:01:14.1]} 28... Qd6 {[%clk 0:00:36.5]} 29. Rxb5 {[%clk
0:01:13.4]} 29... b6 {[%clk 0:00:23.7]} 30. Qe2 {[%clk 0:01:12.7]} 30... Nc6
{[%clk 0:00:22.9]} 31. Qe6+ {[%clk 0:01:04.4]} 31... Qxe6 {[%clk 0:00:22.9]} 32.
Rxe6 {[%clk 0:01:04.3]} 32... Nxd4 {[%clk 0:00:22.7]} 33. Nxd4 {[%clk
0:01:03.9]} 33... Bxd4 {[%clk 0:00:23.6]} 34. Rxd5 {[%clk 0:01:03.3]} 34... Bc5
{[%clk 0:00:23]} 35. Rd7 {[%clk 0:01:00.9]} 35... Rf7 {[%clk 0:00:22.6]} 36.
Re8+ {[%clk 0:00:56.5]} 36... Kg7 {[%clk 0:00:22.5]} 37. Red8 {[%clk 0:00:55.9]}
37... Rxd7 {[%clk 0:00:20.8]} 38. Rxd7+ {[%clk 0:00:55.2]} 38... Kg8 {[%clk
0:00:21.1]} 39. g3 {[%clk 0:00:53.6]} 39... Bf8 {[%clk 0:00:15.8]} 40. Kg2
{[%clk 0:00:52.9]} 40... Bc5 {[%clk 0:00:15.5]} 41. Kf3 {[%clk 0:00:52.1]} 41...
Bf8 {[%clk 0:00:15]} 42. Ke2 {[%clk 0:00:51.8]} 42... Ba3 {[%clk 0:00:13.6]} 43.
Kd3 {[%clk 0:00:50.4]} 43... Bc1 {[%clk 0:00:13.2]} 44. f4 {[%clk 0:00:49]}
44... Ba3 {[%clk 0:00:12.8]} 45. Rb7 {[%clk 0:00:48.3]} 45... Bc5 {[%clk
0:00:12.4]} 46. Ke2 {[%clk 0:00:46.4]} 46... Kh8 {[%clk 0:00:11.8]} 47. Kf3
{[%clk 0:00:45.9]} 47... Kg8 {[%clk 0:00:12.2]} 48. g4 {[%clk 0:00:45.7]} 48...
fxg4+ {[%clk 0:00:12]} 49. Kxg4 {[%clk 0:00:45.3]} 49... Kh8 {[%clk 0:00:12.2]}
50. f5 {[%clk 0:00:44.4]} 50... gxf5+ {[%clk 0:00:12.9]} 51. Kxf5 {[%clk
0:00:44.1]} 51... Kg8 {[%clk 0:00:13.5]} 52. Kf6 {[%clk 0:00:42.9]} 52... Bd4+
{[%clk 0:00:13.3]} 53. Kf5 {[%clk 0:00:43.1]} 53... Bc5 {[%clk 0:00:13.4]} 54.
Rd7 {[%clk 0:00:43.3]} 54... Bg1 {[%clk 0:00:10.1]} 55. Kf6 {[%clk 0:00:42.2]}
55... h5 {[%clk 0:00:09.2]} 56. g6 {[%clk 0:00:40]} 56... Bc5 {[%clk 0:00:07.7]}
57. Rd8+ {[%clk 0:00:39.1]} 57... Bf8 {[%clk 0:00:07.4]} 58. g7 {[%clk
0:00:39.3]} 58... Kh7 {[%clk 0:00:07.9]} 59. gxf8=Q {[%clk 0:00:36.6]} 1-0

[Event "Early-Titled-Tuesday-Blitz-October-10-2023"]
[Site "Chess.com"]
[Date "2023.10.10"]
[Round "7"]
[White "karinachess1"]
[Black "DvaHrasta"]
[Result "1-0"]
[WhiteElo "2617"]
[BlackElo "2436"]
[TimeControl "180+1"]
[EndTime "9:16:08 PDT"]
[Termination "karinachess1 won on time"]

1. d4 {[%clk 0:03:00.9]} 1... Nf6 {[%clk 0:02:58.9]} 2. c4 {[%clk 0:03:01]} 2...
e6 {[%clk 0:02:59]} 3. Nc3 {[%clk 0:03:00.9]} 3... Bb4 {[%clk 0:02:58.6]} 4. Qc2
{[%clk 0:03:00.3]} 4... d5 {[%clk 0:02:57.7]} 5. a3 {[%clk 0:03:00.7]} 5...
Bxc3+ {[%clk 0:02:56.9]} 6. Qxc3 {[%clk 0:03:01.6]} 6... O-O {[%clk 0:02:55.6]}
7. Nf3 {[%clk 0:03:01.9]} 7... c6 {[%clk 0:02:54.4]} 8. Bg5 {[%clk 0:03:01.2]}
8... h6 {[%clk 0:02:52.7]} 9. Bf4 {[%clk 0:03:01.5]} 9... a5 {[%clk 0:02:51.6]}
10. e3 {[%clk 0:02:57.7]} 10... a4 {[%clk 0:02:50.9]} 11. Bd3 {[%clk 0:02:56.3]}
11... b6 {[%clk 0:02:50.9]} 12. h3 {[%clk 0:02:42.6]} 12... Re8 {[%clk
0:02:50.6]} 13. O-O {[%clk 0:02:41.7]} 13... Ba6 {[%clk 0:02:49]} 14. Qc2 {[%clk
0:02:26.9]} 14... Bxc4 {[%clk 0:02:44.6]} 15. Bxc4 {[%clk 0:02:27.8]} 15... dxc4
{[%clk 0:02:44.5]} 16. Qxc4 {[%clk 0:02:28.7]} 16... Qd5 {[%clk 0:02:38.9]} 17.
Qc2 {[%clk 0:02:25.8]} 17... Nbd7 {[%clk 0:02:34.7]} 18. Rfd1 {[%clk 0:02:17.2]}
18... Rec8 {[%clk 0:02:34.3]} 19. Rac1 {[%clk 0:02:02.5]} 19... Qe4 {[%clk
0:02:30.6]} 20. Qe2 {[%clk 0:01:51.3]} 20... c5 {[%clk 0:02:24.2]} 21. Nd2
{[%clk 0:01:40.2]} 21... Qf5 {[%clk 0:02:22.2]} 22. Nc4 {[%clk 0:01:37.3]} 22...
cxd4 {[%clk 0:02:18.2]} 23. Nd6 {[%clk 0:01:33.5]} 23... Rxc1 {[%clk 0:02:00.4]}
24. Nxf5 {[%clk 0:01:28.8]} 24... Rxd1+ {[%clk 0:02:00]} 25. Qxd1 {[%clk
0:01:29.5]} 25... exf5 {[%clk 0:01:57.5]} 26. Qxd4 {[%clk 0:01:27.1]} 26... b5
{[%clk 0:01:48.2]} 27. Qd3 {[%clk 0:01:16.6]} 27... Rc8 {[%clk 0:01:43.7]} 28.
Qxb5 {[%clk 0:01:13.1]} 28... Rc1+ {[%clk 0:01:39.8]} 29. Kh2 {[%clk 0:01:13.4]}
29... Rc2 {[%clk 0:01:37.3]} 30. Bg3 {[%clk 0:00:58.5]} 30... Nc5 {[%clk
0:01:30.2]} 31. f3 {[%clk 0:00:32.7]} 31... Nb3 {[%clk 0:00:40]} 32. Qxf5 {[%clk
0:00:24.8]} 32... Re2 {[%clk 0:00:29.5]} 33. Be5 {[%clk 0:00:20.5]} 33... Nd2
{[%clk 0:00:18]} 34. Bxf6 {[%clk 0:00:12.1]} 34... gxf6 {[%clk 0:00:18]} 35. Qd3
{[%clk 0:00:08.8]} 35... Rf2 {[%clk 0:00:14.4]} 36. Kg1 {[%clk 0:00:05.2]} 36...
Nxf3+ {[%clk 0:00:12.4]} 37. Kxf2 {[%clk 0:00:04.4]} 37... Ne5 {[%clk
0:00:11.2]} 38. Qa6 {[%clk 0:00:04.4]} 38... Kg7 {[%clk 0:00:11.4]} 39. Qxa4
{[%clk 0:00:04.6]} 39... Nd3+ {[%clk 0:00:11.6]} 40. Kf3 {[%clk 0:00:04.1]}
40... Ne5+ {[%clk 0:00:11.4]} 41. Ke4 {[%clk 0:00:04]} 41... Ng6 {[%clk
0:00:10.5]} 42. Qc2 {[%clk 0:00:04]} 42... f5+ {[%clk 0:00:10.3]} 43. Kxf5
{[%clk 0:00:04]} 43... Ne7+ {[%clk 0:00:09.8]} 44. Kg4 {[%clk 0:00:04.4]} 44...
f5+ {[%clk 0:00:09.3]} 45. Kf3 {[%clk 0:00:04.7]} 45... Kg6 {[%clk 0:00:08.8]}
46. a4 {[%clk 0:00:05.2]} 46... Ng8 {[%clk 0:00:08.2]} 47. a5 {[%clk 0:00:05.4]}
47... Nf6 {[%clk 0:00:09.1]} 48. a6 {[%clk 0:00:05.7]} 48... Ne4 {[%clk
0:00:10]} 49. Qxe4 {[%clk 0:00:05.6]} 1-0